Cogmind - Beta 17 @@@ ROGUE MODE // 2026.06.30 @ 16:57:31 Player: Duduxx Result: Destroyed by G-34 Mercenary with Small Laser Performance ------------- Evolutions (1) 500 Regions Visited (3) 600 Robots Destroyed (37) 185 Value Destroyed (767) 767 Prototype IDs (2) 40 Alien Tech Used (0) 0 Bonus (0) 0 TOTAL SCORE: 2092 Bonus ------- None Cogmind --------- Core Integrity 0/400 Matter 293/300 Energy 90/100 System Corruption 0% Temperature Cool (6) Movement Core (100) Ox1 Location -9/Mines Parts ------- > --- POWER (2) -------- (None) > --- PROPULSION (2) --- (None) > --- UTILITY (2) ------ Cooling System > --- WEAPON (3) ------- Maul > --- INVENTORY (5) ---- Light Nuclear Core Improved Heat Sink Improved Heat Sink Seismic Detector Grenade Launcher Peak State ------------ > --- POWER ------------ Light Nuclear Core Light Nuclear Core > --- PROPULSION ------- Light Treads Light Treads > --- UTILITY ---------- High-capacity Storage Unit Targeting Computer > --- WEAPON ----------- Medium Laser Light EM Pulse Cannon Light Assault Rifle > --- INVENTORY -------- Light Nuclear Core Light Nuclear Core Wheel Wheel Wheel Heat Sink Improved Heat Sink Cooling System Hardened Light Armor Plating Assault Rifle Grenade Launcher Grenade Launcher Maul [Rating: 16] Favorites ----------- Power Ion Engine Engine Ion Engine Power Core Light Nuclear Core Propulsion Light Treads Treads Light Treads Wheel Wheel Utility High-capacity Storage Unit Device Seismic Detector Storage High-capacity Storage Unit Processor Targeting Computer Protection Hardened Light Armor Plating Weapon Light Assault Rifle Energy Gun Medium Laser Energy Cannon Light EM Pulse Cannon Ballistic Gun Light Assault Rifle Launcher Grenade Launcher Impact Weapon Maul Build | -11 -10 -9 -9 ------- Run | Yrd Mat Mat Min Slots Evolved 2 | . . 2 . Power 1 | . . 1 . Propulsion . | . . . . Utility . | . . . . Weapon 1 | . . 1 . Parts Attached 30 | 7 2 11 10 Power 8 | 1 1 3 3 Engine 3 | 1 1 1 . Core 5 | . . 2 3 Reactor . | . . . . Propulsion 8 | 2 . 4 2 Treads 4 | 2 . 2 . Leg . | . . . . Wheel 4 | . . 2 2 Hover . | . . . . Flight . | . . . . Utility 6 | 2 1 1 2 Device 2 | 1 . . 1 Storage 2 | 1 1 . . Processor 1 | . . 1 . Hackware . | . . . . Protection 1 | . . . 1 Artifact . | . . . . Weapon 8 | 2 . 3 3 Energy Gun 2 | 1 . . 1 Energy Cannon 1 | . . 1 . Ballistic Gun 2 | 1 . . 1 Ballistic Cannon . | . . . . Launcher 2 | . . 2 . Special Weapon . | . . . . Impact Weapon 1 | . . . 1 Slashing Weapon . | . . . . Piercing Weapon . | . . . . Special Melee Weapon . | . . . . Unidentified Prototypes . | . . . . Parts Lost 19 | . . 8 11 Power 5 | . . 2 3 Propulsion 5 | . . 1 4 Utility 3 | . . 1 2 Weapon 6 | . . 4 2 Highest Loss Streak 7 | . . 7 7 To Critical Strikes . | . . . . Average Backups 9 | 3 6 11 7 Power 1 | . 1 1 1 Propulsion 2 | 1 2 3 . Utility 2 | . 1 3 4 Weapon 2 | . 1 3 1 Tool/Special . | . . . . Unused Backups 5 | . . . 5 Power 1 | . . . 1 Propulsion . | . . . . Utility 4 | . . . 4 Weapon . | . . . . Tool/Special . | . . . . Average Slot Usage (%) 96 | . 100 98 70 Engine 14 | . 14 16 . Core 4 | . . 5 15 Treads 21 | . 28 21 . Wheel 2 | . . . 19 Device 6 | . 14 5 1 Storage 11 | . 14 11 11 Processor 4 | . . 5 3 Energy Gun 10 | . 14 10 3 Energy Cannon 7 | . . 10 . Ballistic Gun 11 | . 14 10 8 Peak Build Rating 16 | 7 8 16 15 Average Rating 10 | 5 7 12 11 On Entrance 5 | . 7 8 6 Avg Prop Armor Cover (%) . | . . . . Naked Turns . | . . . . Heaviest Build 60 | 14 49 58 60 Greatest Support 40 | 40 40 40 20 Greatest Overweight (x) 5 | 4 1 1 5 Average Overweight (x) . | . . . 2 Largest Inventory Capacity 20 | 8 20 20 20 Average Capacity 16 | 7 9 20 20 Most Carried 15 | 4 9 15 11 Average Carried 9 | 3 6 11 7 Final Capacity 20 | 8 20 20 5 Final Carried 12 | 4 9 12 5 Class Distribution -------------------- 60% | Gunner 39% | Mutant Dominant Class ---------------- Mutant | -10/Materials Gunner | -9/Materials Mutant | -9/Mines Resources | -11 -10 -9 -9 ----------- Run | Yrd Mat Mat Min Matter Collected 605 | 283 41 114 167 Remotely . | . . . . Salvage Created 1166 | 137 298 541 190 Parts 75 | 5 17 42 11 Haulers Intercepted . | . . . . Recyclers Shooed 2 | 1 . 1 . Parts Field Recycled . | . . . . Retrieved Matter . | . . . . Parts Self-Destructed . | . . . . Prevented . | . . . . Parts Restored . | . . . . Kills | -11 -10 -9 -9 ------- Run | Yrd Mat Mat Min Combat Hostiles Destroyed 24 | . 4 16 4 Melee 1 | . . . 1 Guns 13 | . 4 6 3 Cannons 7 | . . 7 . AOE 3 | . . 3 . Classes Destroyed 7 | 2 3 2 . Worker 3 | . 1 2 . Tunneler 3 | 2 . . 1 Recycler 3 | 1 1 1 . Watcher 4 | . 2 2 . Swarmer 10 | . . 10 . Grunt 11 | . 4 3 4 Sentry 3 | . . 3 . Best Kill Streak 5 | 1 2 5 3 Combat Bots Only 4 | . 2 4 2 Max Kills in Single Turn 2 | 1 1 2 1 Gunslinging . | . . . . Exploded 2 | . . 2 . Melee 1 | . . . 1 Uniques/NPCs Destroyed . | . . . . Combat | -11 -10 -9 -9 -------- Run | Yrd Mat Mat Min Hostile Shots Fired 234 | . 26 120 88 Missed 57 | . 8 27 22 Hits 177 | . 18 93 66 Melee 3 | . . 3 . Projectile 174 | . 18 90 66 Critical Strikes 4 | . 2 . 2 Damage Taken 2203 | . 269 1119 815 Core 438 | . 33 232 173 Absorbed by Shields . | . . . . Core Remaining (%) 93 | 100 86 . . Volleys Fired 91 | 13 21 25 32 Largest 3 | 2 2 3 2 Hottest 126 | 70 70 126 85 Shots Fired 180 | 26 42 73 39 Gun 153 | 26 42 46 39 Cannon 22 | . . 22 . Launcher 5 | . . 5 . Special . | . . . . Kinetic 87 | 13 21 23 30 Thermal 66 | 13 21 23 9 Explosive 5 | . . 5 . Electromagnetic 22 | . . 22 . Robot Hit Streak 11 | 5 10 11 9 Robot Miss Streak 3 | 2 2 3 3 Penetration Max . | . . . . Secondary Targets . | . . . . Shots Hit Robots 111 | 15 25 38 33 Core Hits 56 | 6 14 27 9 Critical Kills . | . . . . Critical Parts Destroyed . | . . . . Critical Strikes 5 | . 1 3 1 Burn 5 | . 1 3 1 Melee Attacks 9 | . . . 9 Impact 9 | . . . 9 Slashing . | . . . . Piercing . | . . . . Sneak Attacks . | . . . . Combat Hostiles . | . . . . Follow-up Attacks . | . . . . Damage Inflicted 2104 | 168 285 1010 641 Guns 1059 | 168 285 232 374 Cannons 424 | . . 424 . Explosions 354 | . . 354 . Melee 267 | . . . 267 Ramming . | . . . . Kinetic 490 | 68 84 56 282 Thermal 603 | 100 201 210 92 Explosive 320 | . . 320 . Electromagnetic 424 | . . 424 . Impact 267 | . . . 267 Slashing . | . . . . Piercing . | . . . . Highest Corruption . | . . . . Average Corruption . | . . . . Corruption Purged . | . . . . Corruption Blocked . | . . . . Overload Shots . | . . . . Overflow Damage 85 | . . 26 59 Projectiles 26 | . . 26 . Explosions . | . . . . Melee 59 | . . . 59 Knockbacks 1 | . . . 1 Impact 1 | . . . 1 Kinetic . | . . . . Secondary . | . . . . Self-Inflicted Damage 3 | . . 3 . Shots 1 | . . 1 . Rammed . | . . . . Targets Rammed 1 | . 1 . . Kicked . | . . . . Crushed 1 | . 1 . . Highest Temperature 383 | 82 249 377 383 Average Temperature 121 | 31 108 133 149 Received Heat Transfer 999 | . 186 321 492 Effects 5 | . . 2 3 Interference 3 | . . 1 2 Short Circuit 1 | . . 1 . Damage (minor) 1 | . . . 1 Siege Activations . | . . . . Martial Activations . | . . . . Shielding Activations . | . . . . Robots Disrupted . | . . . . Combat Hostiles . | . . . . Robots Corrupted . | . . . . Combat Hostiles . | . . . . Parts Fried 5 | . . 4 1 Impact Corruptions 2 | . . . 2 Robots Melted . | . . . . Combat Hostiles . | . . . . Parts Melted 4 | . . 3 1 Heat Transferred 2048 | 296 666 790 296 Parts Sabotaged . | . . . . Parts Stolen . | . . . . Parts Stripped . | . . . . Power Chain Reactions 1 | . . 1 . Alert | -11 -10 -9 -9 ------- Run | Yrd Mat Mat Min Maximum Alert Level . | . . . . Low Security (%) 100 | 100 100 100 100 Level 1 . | . . . . Level 2 . | . . . . Level 3 . | . . . . Level 4 . | . . . . Level 5 . | . . . . High Security . | . . . . Max Security . | . . . . Peak Influence 167 | 5 50 167 45 Initial 5 | . . . 5 Average 44 | . 12 65 14 Influence Increases 799 | 15 124 525 135 Destroy 0b10 Robot/C 480 | . 80 320 80 Destroy 0b10 Robot/NC 65 | 15 20 25 5 Destroy Leader 108 | . 24 64 20 Successful Hack 28 | . . 28 . Destroy Structure 28 | . . 28 . Lose Combat Pursuer 90 | . . 60 30 Influence Decreases 779 | 15 124 511 129 Entered New Map 9 | . . . 9 Time Decay 624 | 15 124 435 50 Lost Part 146 | . . 76 70 Squads Dispatched . | . . . . Investigation . | . . . . Extermination . | . . . . Reinforcement . | . . . . Assault . | . . . . Garrison . | . . . . Intercept . | . . . . Searches Triggered . | . . . . Construction Impeded . | . . . . Haulers Reinforced . | . . . . Active Scanning Responses . | . . . . Cargo Convoy Interrupts . | . . . . Stealth | -11 -10 -9 -9 --------- Run | Yrd Mat Mat Min Distress Signals 2 | . . 2 . Communications Jammed . | . . . . Distress Signals . | . . . . Times Spotted 40 | . 6 26 8 Peak Tracking Total 7 | . 2 7 3 Tactical Retreats 4 | . . 2 2 Traps | -11 -10 -9 -9 ------- Run | Yrd Mat Mat Min Traps Triggered . | . . . . Indirectly . | . . . . Trap Hack Attempts . | . . . . Triggered . | . . . . Disarmed . | . . . . Reprogrammed . | . . . . Reused . | . . . . Traps Extracted . | . . . . Installed . | . . . . Triggered . | . . . . Machines | -11 -10 -9 -9 ---------- Run | Yrd Mat Mat Min Machines Disabled . | . . . . Max in Single Turn . | . . . . Machines Repaired . | . . . . Machines Dismantled . | . . . . Machines Sabotaged . | . . . . Overloaded Fab Kills . | . . . . Hacking | -11 -10 -9 -9 --------- Run | Yrd Mat Mat Min Machines Accessed 5 | . 1 4 . Terminals 5 | . 1 4 . Fabricators . | . . . . Repair Stations . | . . . . Recycling Units . | . . . . Scanalyzers . | . . . . Garrison Access . | . . . . Total Hacks 12 | . 3 9 . Successful 9 | . 3 6 . Failed 3 | . . 3 . Catastrophic . | . . . . Database Lockouts . | . . . . Manual . | . . . . Terminals 12 | . 3 9 . Fabricators . | . . . . Repair Stations . | . . . . Recycling Units . | . . . . Scanalyzers . | . . . . Garrison Access . | . . . . Terminal Hacks 9 | . 3 6 . Record 1 | . . 1 . Prototype ID Bank 1 | . . 1 . Alert Level 1 | . 1 . . Locate Traps 2 | . 1 1 . Dispatch Records 1 | . 1 . . Maintenance Status 1 | . . 1 . Surveillance Status 1 | . . 1 . Zone Layout 1 | . . 1 . Fabricator Hacks . | . . . . Repair Station Hacks . | . . . . Recycling Unit Hacks . | . . . . Scanalyzer . | . . . . Garrison Access Hacks . | . . . . Unauthorized Hacks . | . . . . Terminals . | . . . . Fabricators . | . . . . Repair Stations . | . . . . Recycling Units . | . . . . Scanalyzers . | . . . . Garrison Access . | . . . . Data Cores Recovered . | . . . . Used . | . . . . Hacking Detections 2 | . 1 1 . Full Trace Events . | . . . . Feedback Events . | . . . . Feedback Blocked . | . . . . Robot Schematics Acquired . | . . . . Robots Built . | . . . . Authchips . | . . . . Time . | . . . . Total Robot Build Rating . | . . . . Part Schematics Acquired . | . . . . Parts Built . | . . . . Authchips . | . . . . Time . | . . . . Total Part Build Rating . | . . . . Part Studies Acquired . | . . . . Parts Repaired . | . . . . Time . | . . . . Parts Recycled . | . . . . Recycled Matter . | . . . . Retrieved Matter . | . . . . Retrieved Components . | . . . . Parts Scanalyzed . | . . . . Part Schematics Acquired . | . . . . Parts Damaged . | . . . . Bothacking | -11 -10 -9 -9 ------------ Run | Yrd Mat Mat Min Used RIF Installer . | . . . . Robots Hacked . | . . . . Non-combat . | . . . . Combat . | . . . . Robot Hacks Applied . | . . . . Relay Couplers Released . | . . . . Fabnet Peak Effective % . | . . . . Robots Rewired . | . . . . Allies Hacked . | . . . . Hacks Repelled . | . . . . Allies | -11 -10 -9 -9 -------- Run | Yrd Mat Mat Min Total Allies . | . . . . Largest Group . | . . . . Highest-Rated Group . | . . . . Highest-Rated Ally . | . . . . Total Orders . | . . . . Ally Attacks . | . . . . Total Damage . | . . . . Kills . | . . . . Allies Corrupted . | . . . . Allies Melted . | . . . . Intel | -11 -10 -9 -9 ------- Run | Yrd Mat Mat Min Active Infowar (turns) 1023 | 17 438 568 . Seismic 1023 | 17 438 568 . Robot Analysis Total . | . . . . Derelict Logs Recovered . | . . . . Drone Launches . | . . . . Drone Recoveries . | . . . . Exploration | -11 -10 -9 -9 ------------- Run | Yrd Mat Mat Min Turns Passed 2016 | 160 438 1246 172 Spaces Moved 811 | 67 221 479 44 Core 11 | 11 . . . Treads 748 | 56 221 471 . Legs . | . . . . Wheels 52 | . . 8 44 Hover . | . . . . Flight . | . . . . Fastest Speed 50 | 50 160 95 110 Average Speed 205 | 165 165 237 119 Slowest Speed 250 | 250 240 240 155 Overloaded Moves . | . . . . Propulsion Burnouts . | . . . . Robots Hopped . | . . . . Potential Cave-ins . | . . . . Cave-ins Triggered . | . . . . Exploration Rate (%) 29 | 5 45 47 19 Regions Visited 3 Branch Regions 1 Pre-discovered Areas . | . . . . Known Exits Taken . | . . . . Unknown Exits Taken 3 | 1 1 1 . Scrap Searched . | . . . . Spaces Dug . | . . . . Terrain Destroyed 26 | . . 26 . Melee . | . . . . Projectile . | . . . . AOE 26 | . . 26 . Terrain Rammed . | . . . . Walls Destroyed . | . . . . Machines Disabled . | . . . . Actions | -11 -10 -9 -9 --------- Run | Yrd Mat Mat Min Total 990 | 90 257 537 106 Wait 19 | . 5 6 8 Move 808 | 66 220 478 44 Hop . | . . . . Pick Up 19 | 4 6 8 1 Fast Attach 13 | 7 . 3 3 Attach 13 | . 1 5 7 Detach 3 | . . 3 . Swap 5 | . 1 4 . Drop 9 | . 2 5 2 Fire 91 | 13 21 25 32 Melee 9 | . . . 9 Ram . | . . . . Kick . | . . . . Crush 1 | . 1 . . Escape Stasis . | . . . . Rewire . | . . . . Trap . | . . . . Miscellaneous . | . . . . Route ------- -11/Scrapyard -10/Materials -9/Materials (discovered 3 exits: [*Mat] / [*Min x2]) -9/Mines (discovered 1 exit: [*Mat]) History --------- Turn | Location | Event 22 | -11/Scrapyard | Discovered new exit (range 14) 161 | -11/Scrapyard | Entered Materials 317 | -10/Materials | Build established: Mutant 592 | -10/Materials | Discovered new exit (range 3) 599 | -10/Materials | Entered another Materials area 599 | -9/Materials | Evolved 2 slots: Power x1, Weapon x1 905 | -9/Materials | Build established: Gunner 967 | -9/Materials | Discovered new exit (range 8) 1636 | -9/Materials | Discovered new exit (range 15) 1789 | -9/Materials | Discovered new exit (range 16) 1833 | -9/Materials | Core integrity fell below 50% 1845 | -9/Materials | Entered Mines 1866 | -9/Mines | Lost 7 parts (2p1n4w) 1932 | -9/Mines | Discovered new exit (range 9) 1956 | -9/Mines | Lost 4 parts (1p2n1u) 2006 | -9/Mines | Core integrity fell below 20% 2017 | -9/Mines | Destroyed by G-34 Mercenary with Small Laser Last Messages --------------- 01986_ Lgt. Nuclear Core destroyed. 01986_ Particle Gun destroyed. 01986_ R-06 Scavenger collects Imp. Terrain Scanner. 01989_ R-06 Scavenger collects Aluminum Leg. 01994_ Acquired 19 matter. 01995_ G-34 Mercenary knocked back. 01998_ R-06 Scavenger collects Lgt. Ion Engine. 02001_ Destroyed Heat Sink. 02001_ G-34 Mercenary system corrupted by crushing effect. 02004_ Wheel destroyed. 02013_ Destroyed Ion Engine. 02013_ G-34 Mercenary system corrupted by crushing effect. 02013_ Aluminum Leg fried. 02013_ G-34 Mercenary destroyed. 02016_ Dropped Heat Sink. 02017_ Dropped Hcp. Storage Unit. Map ----- +----------------------------------------------------+ | ?????????????????? ##??# ?????? ????? | | ?????????????????? #??# #????? #?????? | | ??????????????????# ???# #????# #??????? | | ??????????????#???# ???# #?### #????????? | | ??????????????? ### ???# ### #?????????? | | ???????????????? ????# ## #?????????? | | ????????????????? ????# ##?????????? | | ?????????????????? #????# ### #??????????? | | ???????????????????# #????# #?## ##??????????? | | ????????????????#??# ###### #???# ##???????????? | | ????? ### ## #????###????????????? | | ????? ########???????????????????? | | ????? ##### #??????????????????????????? | | ???????? ?????????# ##?????????????????????????? | | ??????????????????## ##????????????????????????? | | ??????????????????# ##???????????????????????? | | ??????????????????# """ #???????????????????????? | | ??????????????????# """ #???????????????????????? | | ??????????????????# """ #???????????????????????? | | ??????????????????# ##???????????????????????? | | ??????????????????# #????????????????????????? | | ??????????????????## #????????????????????????? | | ???????????????????# ##???????????????????????? | | ?????????????#?????# ##??????????????????????? | | ?????????????# ### =#??????? #????????????? | | ?????????????# t r@#### < #??????????????? | | ???????????# g % #???????????????? | | ?????????# ## ### g ##### "????????? | | ?????????? ???# ??#####???????# ### ""???????? | | ?????????????????#???????????????????????????????? | | ?????????????????????????????????????????????????? | | ?????????????????????????????????????????????????? | | ?????????????????????????????????????????????????? | | ?????????????????????????????????????????????????? | | ?????????????????????????????????????????????????? | | ?????????????????????????????????????????????????? | | ?????????????????????????????????????????????????? | | ?????????????????????????????????????????????????? | | ?????????????????????????????????????????????????? | | ?????????????????????????????????????????????????? | | ?????????????????????????????????????????????????? | | ?????????????????????????????????????????????????? | | ?????????????????????????????????????????????????? | | ?????????????????????????????????????????????????? | | ?????????????????????????????????????????????????? | | ?????????????????????????????????????????????????? | | ?????????????????????????????????????????????????? | | ?????????????????????????????????????????????????? | | ?????????????????????????????????????????????????? | | ?????????????????????????????????????????????????? | +----------------------------------------------------+ Best States ------------- Heat Dissipation 28 Energy Generation 23 Energy Capacity 400 Matter Stores 300 Matter Capacity 300 Sight Range 16 Terrain Scan Density 10 Armor Coverage 150 Evasion (%) 40 Targeting Accuracy 5 Recoil Reduction 2 Item Schematics ----------------- None Robot Schematics ------------------ None Fabricated ------------ Nothing Repaired ---------- Nothing Studied --------- None Alien Tech Used ----------------- None Achievements -------------- None Challenges ------------ None Game ------ Seed MeleePhasingCoupler Manual? 0 Play Time 00:13:29 Cumulative 134.7 hours Start 2026.06.30 @ 16:45:50 End 2026.06.30 @ 16:57:31 Sessions 1 Manual Loads 0 Difficulty Rogue Special Mode None Game No. 253 Rogue 253 Adventurer 0 Explorer 0 Win Type - Total 0 Types 0/0/0/0/0/0/0/0/0/0 Lore% 37 Gallery% 46 Achievement% 28 Wizard Run 0 Options --------- Layout 1 ASCII 0 Keyboard 1 Movement Arrows Keybinds 0 Fullscreen 2 Font 24/Smallcaps Map View 50x35 Zoom Use 0% Tactical HUD 1 Map Filters NONE Filters NONE Steam 1 RUN: 59c35c3c-06cd-4b65-8876-09fc84980b34